{"text_format":"1","workbook":"xlsx","n_sheets":6,"sheets":["Menu","Onshore Entry Fees","Offshore Entry Fees","Exit Fees","Other Fees","Zonal Map"],"not_rendered":{"charts":0,"images":3,"macros":1,"external_links":0,"defined_names":177,"comments":0,"pivot_tables":0},"unopened":[],"bounds":{"document_bytes":16777216,"sheet_cells":100000,"rows_first":2000,"rows_last":500,"rows_between":2000,"halvings":0,"cell_chars":16384,"cell_head_chars":4096},"cells_cut":0,"cells_raw":0,"read":"whole","date_system":"1900"}

{"sheet":"Menu","index":0,"n_rows":0,"n_cols":0,"rows_kept":0,"cut":false,"hidden":false,"merged":[]}

{"sheet":"Onshore Entry Fees","index":1,"n_rows":46,"n_cols":14,"rows_kept":46,"cut":false,"hidden":false,"merged":[[42,11,45,11],[22,13,25,13],[26,13,29,13],[30,13,33,13],[34,13,37,13],[38,13,41,13],[42,13,45,13],[34,11,37,11],[22,11,25,11],[26,11,29,11],[30,11,33,11],[20,11,20,14],[38,11,41,11],[0,1,0,9],[6,1,6,2],[7,1,7,2],[36,0,36,4],[22,6,25,6],[9,1,9,2],[2,1,2,9],[14,4,15,4],[16,5,18,5],[4,1,4,10],[20,6,20,8],[42,6,45,6],[38,6,41,6],[34,6,37,6],[30,6,33,6],[26,6,29,6]]}
[null,"Application Fees - 2021/22"]
[]
[null,"Calculator for Onshore Fee"]
[]
[null,"Please enter the Zone, the MW of the generator or increase/decrease in TEC and the Type of Entry Fee and then click on \"Calculate Onshore Fee\"\n\nIf applying for a combination of changes after making an initial application and this is prior to the completion of works associated to the initial application, such as a change to works or completion date that also includes a TEC Change, the Application Fee will be the higher of the TEC Change Fee or Modification Application Fee."]
[]
[null,"Zone and Host TO"]
[null,"MW"]
[null,"Base","Macro Data"]
[null,"Base",null,{"$f":"Base","v":0}]
[null,"Rate","Macro Data"]
[null,"Application Type",null,0.75]
[null,null,{"$f":"TypeFee","v":0}]
[null,null,null,{"$f":"Base+(MW*Rate)","v":0}]
[]
[null,null,null,{"$f":"D14*Fee","v":0}]
[null,"Application Fee (VAT Not Included)",null,{"$f":"IF(D16>400000, 400000, D16)","v":0}]
[null,"VAT (20%)",null,{"$f":"D17*0.2","v":0}]
[null,"Application Fee (VAT Included)",null,{"$f":"D17+D18","v":0},null,null,null,null,null,null,"`"]
[null,null,null,null,null,null,null,"-"]
[null,null,null,null,null,null,"Entry Application Fees",null,null,null,null,"Onshore Application BEGA/BELLA"]
[null,"Other Entry Fees",null,null,null,null,null,null,"Fee",null,null,null,null,"Fee"]
[null,null,null,null,null,null,"SHET1\nSHET Host TO, SPT affected","<100MW",27950,null,null,"SHET1\nSHET Host TO, SPT affected",null,18450]
[null,"New Application",null,null,1,null,null,"100MW-249MW",27950]
[null,"Modification Application",null,null,0.75,null,null,"250MW-1800MW",34950]
[null,null,null,null,null,null,null,">1800MW",54950]
[null,"Request for Design Variation in Addition to Standard Offer",null,null,1.5,null,"SPT3\nSPT Host, SHET affected","<100MW",44950,null,null,"SPT3\nSPT Host, SHET affected",null,23450]
[null,"Embedded Generation New Application",null,null,1,null,null,"100MW-249MW",44950]
[null,"Embedded Generation Modification Application",null,null,0.75,null,null,"250MW-1800MW",44950]
[null,null,null,null,null,null,null,">1800MW",99950]
[null,"TEC Increase / Decrease",null,null,1,null,"SPT2\nSPT Host TO","<100MW",39950,null,null,"SPT2\nSPT Host TO",null,18450]
[null,null,null,null,null,null,null,"100MW-249MW",39950]
[null,null,null,null,null,null,null,"250MW-1800MW",39950]
[null,null,null,null,null,null,null,">1800MW",89950]
[null,null,null,null,null,null,"SPT1\nSPT Host, NGET affected","<100MW",50700,null,null,"SPT1\nSPT Host, NGET affected",null,24450]
["Link to \"The Statement of Use of System Charges\"",null,null,null,null,null,null,"100MW-249MW",55950]
["https://www.nationalgrideso.com/charging/charging-statements",null,null,null,null,null,null,"250MW-1800MW",72650]
[null,null,null,null,null,null,null,">1800MW",141950]
[null,null,null,null,null,null,"NGET2\nNGET Host, SPT affected","<100MW",34450,null,null,"NGET2\nNGET Host, SPT affected",null,16150]
[null,null,null,null,null,null,null,"100MW-249MW",45000]
[null,null,null,null,null,null,null,"250MW-1800MW",85350]
[null,null,null,null,null,null,null,">1800MW",128950]
[null,null,null,null,null,null,"NGET 1\nNGET Host TO","<100MW",26450,null,null,"NGET 1\nNGET Host TO",null,12650]
[null,null,null,null,null,null,null,"100MW-249MW",37000]
[null,null,null,null,null,null,null,"250MW-1800MW",70350]
[null,null,null,null,null,null,null,">1800MW",108950]

{"sheet":"Offshore Entry Fees","index":2,"n_rows":34,"n_cols":7,"rows_kept":34,"cut":false,"hidden":false,"merged":[[0,0,0,8],[16,6,17,6],[5,5,5,6],[9,5,10,5],[9,6,10,6],[6,1,6,2],[7,1,7,2],[9,1,9,2],[4,1,4,4],[2,0,2,8],[16,1,16,2],[17,1,17,2],[41,1,41,5],[28,1,28,2],[27,1,27,2],[28,6,29,6],[28,5,29,5],[26,5,27,5],[26,6,27,6],[30,5,31,5],[30,6,31,6],[22,1,22,3],[24,5,25,5],[24,6,25,6],[22,5,22,6],[18,5,19,5],[18,6,19,6],[18,1,18,2]]}
["Application Fees - 2021/22"]
[]
["Calculator for Offshore Fee"]
[]
[null,"Please enter the Zone and the Type of Entry Fee and then click on \"Calculate Offshore Fee\""]
[]
[null,"Zone and Host TO"]
[null,"£ per Connection Site",null,{"$f":"offshoresite","v":0}]
[null,"£ per Connection Site (Macro Data)"]
[null,"Total No. of Offshore Platforms",null,1]
[null,"Application Type",null,{"$f":"offshoreentryfee","v":0}]
[null,null,{"$f":"OffshoreTypeFee","v":0}]
[null,null,null,{"$f":"D8*platform","v":0}]
[]
[null,null,null,{"$f":"D13*offshoreapplicationfee","v":0}]
[]
[null,"Application Fee (VAT Not Included)",null,{"$f":"IF(D15>400000, 400000, D15)","v":0}]
[null,"VAT (20%)",null,{"$f":"D17*0.2","v":0}]
[null,"Application Fee (VAT Included)",null,{"$f":"D17+D18","v":0}]
[]
[]
[]
[null,"Other Entry Fees",null,null,null,"Offshore Entry Application Fees"]
[null,null,null,null,null,null,"Per Connection Site"]
[null,"New Application",null,1,null,"SHET1\nSHET Host TO, SPT affected",99550]
[null,"Modification Application",null,0.75]
[null,"Request for Design Variation in Addition to Standard Offer",null,1.5,null,"SPT3\nSPT Host, SHET affected",104550]
[]
[null,null,null,null,null,"SPT2\nSPT Host TO",54550]
[null,null,null,null,null,null,"100>1320"]
[null,null,null,null,null,"SPT1\nSPT Host, NGET affected",78900]
[null,null,null,null,null,null,"100>1320"]
[null,null,null,null,null,"NGET2\nNGET Host, SPT affected",98300]
[null,null,null,null,null,"NGET 1\nNGET Host TO",63300]

{"sheet":"Exit Fees","index":3,"n_rows":40,"n_cols":16,"rows_kept":40,"cut":false,"hidden":false,"merged":[[0,0,0,9],[21,8,21,9],[20,6,20,7],[21,6,21,7],[16,4,16,5],[16,8,16,9],[21,14,21,15],[2,0,2,9],[16,6,16,7],[20,8,20,9],[16,14,16,15],[16,12,16,13],[16,10,16,11],[20,14,20,15],[39,1,39,6],[20,12,20,13],[21,12,21,13],[20,10,20,11],[21,10,21,11],[20,4,20,5],[21,4,21,5]]}
["Application Fees - 2021/2022"]
[]
["Exit Fees"]
[]
[null,"Zone and Host TO"]
[null,"MW"]
[null,"Application Type"]
[null,"Rate",{"$f":"IF(ExitZone=\"\",\"\",VLOOKUP(ExitTypeFee,B19:C23,2,FALSE))","v":""}]
[null,"Application Fee Base"]
[null,"Application Fee Cost",{"$f":"IF(ExitZone=\"\",\"\",ExitFee*C8)","v":""}]
[null,"VAT (20%)",{"$f":"IF(ExitZone=\"\",\"\",C10*0.2)","v":""}]
[null,"Application Fee (VAT Included)",{"$f":"IF(ExitZone=\"\",\"\",C10+VAT)","v":""}]
[]
[]
[]
[]
[null,null,null,null,"NGET 1\nNGET Host TO",null,"NGET2\nNGET Host, SPT affected",null,"SPT1\nSPT Host, NGET affected",null,"SPT2\nSPT Host TO",null,"SPT3\nSPT Host, SHET affected",null,"SHET1\nSHET Host TO, SPT affected"]
[null,null,null,null,"<100MW",">=100MW","<100MW",">=100MW","<100MW",">=100MW","<100MW",">=100MW","<100MW",">=100MW","<100MW",">=100MW"]
[null,"New Supply Point",1,null,31650,39500,43650,64500,48700,67650,35750,50750,50750,65750,42750,55750]
[null,"Modification Application",0.75,null,{"$f":"ExitNGET1a*0.75","v":23737.5},{"$f":"ExitNGET1b*0.75","v":29625},{"$f":"ExitNGET2a*0.75","v":32737.5},{"$f":"ExitNGET2b*0.75","v":48375},{"$f":"ExitSPT1a*0.75","v":36525},{"$f":"ExitSPT1b*0.75","v":50737.5},{"$f":"ExitSPT2a*0.75","v":26812.5},{"$f":"ExitSPT2b*0.75","v":38062.5},{"$f":"ExitSPT3a*0.75","v":38062.5},{"$f":"ExitSPT3b*0.75","v":49312.5},{"$f":"ExitSHET1a*0.75","v":32062.5},{"$f":"ExitSHET1b*0.75","v":41812.5}]
[null,"Statement of Works at existing supply point",1,null,3200,null,3700,null,3700,null,1100,null,1600,null,1600]
[null,"Project Progression",1,null,18250,null,20250,null,20450,null,8700,null,10950,null,9700]
[null,"Modification to Project Progression",0.75]
[]
[]
[]
[]
[]
[]
[]
[]
[]
[]
[]
[]
[]
[]
[]
[null,"Link to \"The Statement of Use of System Charges\""]
[null,"https://www.nationalgrideso.com/charging/charging-statements"]

{"sheet":"Other Fees","index":4,"n_rows":13,"n_cols":8,"rows_kept":13,"cut":false,"hidden":false,"merged":[[7,2,7,7],[9,2,9,7],[12,2,12,7]]}
[]
[]
[]
[]
[]
[null,"Application Type","NGET1","NGET2","SPT1","SPT2","SPT3","SHET1"]
[null,"TEC Exchange Request (no system works)",10000,10000,10000,10000,17000,17000]
[null,"Request for STTEC or SNSTF",10000]
[null,"Directly Connected Reactive Only Service Provider",10000,10000,35000,35000,35000,"NA"]
[null,"Suppliers and Interconnector Users",5000]
[null,"Assign, transfer or minor admin changes",3100,4600,4600,2100,7100,5600]
[null,"Storage","NA","NA","NA",39950,49950,29950]
[null,"Novation of a bilateral agreement",3000]

{"sheet":"Zonal Map","index":5,"n_rows":0,"n_cols":0,"rows_kept":0,"cut":false,"hidden":false,"merged":[]}